Cogmind - Beta 13 @@@ ROGUE MODE // 2024.06.08 @ 01:59:08 Player: Some Pennies Result: Self-destructed Performance ------------- Evolutions (7) 3500 Regions Visited (21) 4200 Robots Destroyed (170) 850 Value Destroyed (4294) 4294 Prototype IDs (230) 4600 Alien Tech Used (2) 400 Bonus (3718) 3718 TOTAL SCORE: 21562 Bonus ------- High Alert Combat Kills 321 Follower Combat Kills 543 Met Data Miner 300 Used Data Conduit 3000 Met Zhirov 300 Pursued by Intercept 500 Friendly Fire -1246 Cogmind --------- Core Integrity 397/1300 Matter 195/300 Energy 100/100 System Corruption 10% Temperature Cool (0) Movement Core (50) Location -3/Research Parts ------- > --- POWER (1) -------- (None) > --- PROPULSION (6) --- (None) > --- UTILITY (12) ----- (None) > --- WEAPON (2) ------- (None) > --- INVENTORY (5) ---- Improved Gyrokinetic Inverter Stasis Canceller Improved Trap Extractor (6/6 Dirty Bomb) Nova Cannon Hardcell Cannon Peak State ------------ > --- POWER ------------ Particle Reactor > --- PROPULSION ------- Gyrokinetic Inverter Gyrokinetic Inverter Gyrokinetic Inverter Gyrokinetic Inverter Improved Gyrokinetic Inverter Impulse Thruster > --- UTILITY ---------- Experimental Heat Sink Medium Storage Unit Advanced Weight Redist. System Machine Analyzer Enhanced Optical Array Advanced Signal Interpreter Makeshift System Shield Improved System Shield Improved Trap Extractor > --- WEAPON ----------- Advanced Datajack Force Lance > --- INVENTORY -------- Particle Reactor Nuclear Pulse Array Stasis Canceller Antimissile System Transdimensional Reconstructor Nova Cannon Hardcell Cannon Hellfire Missile Launcher [Rating: 104] Favorites ----------- Power Light Nuclear Core Engine Improved Ion Engine Power Core Light Nuclear Core Reactor Particle Reactor Propulsion Light Treads Treads Light Treads Wheel Compact Wheel Hover Unit Gyrokinetic Inverter Flight Unit Flightbrick Utility Hacking Suite Device Advanced Sensor Array Storage Large Storage Unit Processor Improved Signal Interpreter Hackware Hacking Suite Protection Improved Utility Shielding Weapon Subdweller Beam Cannon Energy Gun Heavy Riot Gun Energy Cannon Subdweller Beam Cannon Ballistic Gun Assault Rifle Ballistic Cannon Battle Cannon Launcher Subdweller Shrapnel Launcher Special Weapon Mining Laser Impact Weapon Heavy Mace Slashing Weapon Greatsword Piercing Weapon Makeshift Spear Special Melee Weapon Dirty Datajack Build | -11 -10 -10 -8 -7 -7 -7 -7 -6 -6 -6 -6 -6 -5 -5 -5 -5 -5 -4 -4 -4 -3 ------- Run | Yrd Mat Sub Mat Fac Low Low Zio Pro Fac Low Low Dat Pro Fac Upp Upp Zhi Pro Fac Ext Res Slots Evolved 14 | . . . 4 2 . . . . 2 . . . . 2 . . . . 2 . 2 Power . | . . . . . . . . . . . . . . . . . . . . . . Propulsion 4 | . . . 2 . . . . . 1 . . . . . . . . . 1 . . Utility 10 | . . . 2 2 . . . . 1 . . . . 2 . . . . 1 . 2 Weapon . | . . . . . . . . . . . . . . . . . . . . . . Parts Attached 273 | 7 21 38 35 47 11 6 7 5 18 7 5 . 3 10 2 3 3 6 5 11 23 Power 21 | 1 2 2 3 4 . . . . 1 . . . 1 . . . . . 1 2 4 Engine 10 | 1 1 2 2 2 . . . . . . . . . . . . . . . 1 1 Core 8 | . 1 . 1 2 . . . . 1 . . . 1 . . . . . 1 1 . Reactor 3 | . . . . . . . . . . . . . . . . . . . . . 3 Propulsion 48 | 2 3 3 14 1 . . . . 1 . . . . 5 . 2 1 1 2 5 8 Treads 21 | 1 3 3 12 . . . . . . . . . . . . . . . . 2 . Leg . | . . . . . . . . . . . . . . . . . . . . . . Wheel 1 | 1 . . . . . . . . . . . . . . . . . . . . . Hover 6 | . . . . . . . . . . . . . . . . . . . . . 6 Flight 20 | . . . 2 1 . . . . 1 . . . . 5 . 2 1 1 2 3 2 Utility 97 | 2 6 12 9 20 5 5 4 1 14 . . . . 1 2 1 2 2 2 2 7 Device 46 | 1 2 5 7 9 3 3 1 . 6 . . . . . 1 . . . 1 2 5 Storage 8 | 1 2 2 . 2 . . . . . . . . . . . . . . . . 1 Processor 6 | . . . . 1 1 . . 1 3 . . . . . . . . . . . . Hackware 13 | . . . 2 3 . . 1 . 1 . . . . 1 1 1 1 . 1 . 1 Protection 24 | . 2 5 . 5 1 2 2 . 4 . . . . . . . 1 2 . . . Artifact . | . . . . . . . . . . . . . . . . . . . . . . Weapon 107 | 2 10 21 9 22 6 1 3 4 2 7 5 . 2 4 . . . 3 . 2 4 Energy Gun 6 | 1 1 1 2 1 . . . . . . . . . . . . . . . . . Energy Cannon 18 | . . 5 4 . . . . . . 2 2 . 1 2 . . . . . 1 1 Ballistic Gun 14 | 1 7 6 . . . . . . . . . . . . . . . . . . . Ballistic Cannon 14 | . . . 2 8 4 . . . . . . . . . . . . . . . . Launcher 16 | . . 2 . 3 . 1 2 2 1 2 1 . . . . . . 1 . . 1 Special Weapon 8 | . . 6 . 2 . . . . . . . . . . . . . . . . . Impact Weapon 4 | . . . . . . . . . . . . . . 2 . . . 1 . 1 . Slashing Weapon 1 | . . . . 1 . . . . . . . . . . . . . . . . . Piercing Weapon 16 | . . . 1 7 2 . 1 . . 1 1 . 1 . . . . 1 . . 1 Special Melee Weapon 10 | . 2 1 . . . . . 2 1 2 1 . . . . . . . . . 1 Unidentified Prototypes 11 | . . 1 3 3 . . 2 . . . . . . . . . 1 . . . 1 Corrupted Parts 4 | . . 1 . . . . . . . . . . . . . . . . . 3 . System Corruption 13 | . . 1 . . . . . . . . . . . . . . . . . 12 . Parts Lost 36 | . 1 2 2 1 1 . . . 1 . . . 1 3 . . . 2 1 15 6 Power 6 | . . 1 1 . . . . . . . . . . . . . . 1 . 2 1 Propulsion 12 | . 1 . 1 . . . . . . . . . . 1 . . . 1 1 6 1 Utility 14 | . . . . 1 1 . . . 1 . . . 1 . . . . . . 7 3 Weapon 4 | . . 1 . . . . . . . . . . . 2 . . . . . . 1 Highest Loss Streak 14 | . 1 1 1 1 1 . . . 1 . . . 1 3 . . . 1 1 14 6 To Critical Strikes . | . . . . . . . . . . . . . . . . . . . . . . Average Slot Usage (%) 87 | . 99 94 92 70 73 71 73 79 81 81 81 81 80 82 85 94 94 91 84 62 65 Engine 4 | . 6 7 7 4 . . . . . . . . . . . . . . . . . Core 4 | . 7 6 1 1 6 6 6 6 5 6 6 6 6 5 5 5 5 2 4 3 . Treads 16 | . 26 28 34 . . . . . . . . . . . . . . . . 1 . Flight 5 | . . . . 6 6 6 6 6 11 12 12 12 12 27 29 29 29 28 21 11 2 Device 8 | . 6 9 14 8 5 4 2 . 5 6 6 6 6 5 6 5 5 5 5 3 9 Storage 8 | . 14 9 9 6 6 6 6 6 5 6 6 6 6 5 5 5 5 5 5 3 2 Processor 5 | . . . . 5 6 13 13 13 16 18 18 18 18 16 17 17 17 17 15 15 13 Hackware 6 | . . . 5 17 20 14 17 20 9 6 6 6 6 4 6 16 17 17 21 14 4 Protection 6 | . 7 4 2 8 12 11 13 13 11 12 12 12 11 5 5 5 5 5 5 2 . Energy Gun 2 | . 2 7 1 . . . . . . . . . . . . . . . . . . Energy Cannon 3 | . . 6 11 . . . . . . 1 2 . . 1 . . . . . . . Ballistic Gun 4 | . 22 8 . . . . . . . . . . . . . . . . . . . Special Weapon 1 | . . 4 . 2 . . . . . . . . . . . . . . . . . Piercing Weapon 1 | . . . . 5 5 6 5 6 5 5 4 6 5 2 . . . . . . 2 Special Melee Weapon 1 | . 2 . . . . . . 5 5 5 4 6 6 2 . . . . . . 1 Naked Turns 7 | . . . . . . . . . . . . . . . . . . . . . 7 Heaviest Build 59 | 13 37 46 59 29 35 30 24 24 34 42 42 29 29 26 31 31 26 28 28 35 39 Greatest Support 80 | 16 40 40 80 24 24 24 24 24 29 29 29 29 29 31 31 31 31 31 36 56 56 Greatest Overweight (x) 5 | 2 1 1 . 1 1 1 . . 1 1 1 . . 5 . . . 5 1 4 2 Average Overweight (x) . | . . . . . . . . . . . . . . . . . . . . . . Largest Inventory Capacity 15 | 8 15 15 15 15 10 10 10 10 10 10 10 10 10 10 10 10 10 10 10 10 10 Average Capacity 11 | 7 11 11 15 9 10 10 10 10 10 10 10 10 10 10 10 10 10 10 10 8 8 Most Carried 15 | 5 15 15 15 15 10 10 10 10 10 10 10 10 10 10 10 10 10 10 10 10 10 Average Carried 10 | 2 10 11 14 8 9 9 10 9 9 10 9 10 9 9 10 9 9 9 9 7 7 Final Capacity 15 | 8 15 15 15 10 10 10 10 10 10 10 10 10 10 10 10 10 10 10 10 5 5 Final Carried 15 | 5 15 14 15 10 10 10 10 10 10 10 10 10 10 10 10 10 10 10 10 5 5 Class Distribution -------------------- 42% | Mutant 20% | Hacker-Mutant 11% | Scout 6% | Scavenger-Mutant 6% | Derelict-Mutant 5% | Hacker-Scout 4% | Subdweller-Mutant Dominant Class ---------------- Mutant | -10/Materials Mutant | -10/Subcaves Scavenger-Mutant | -8/Materials Hacker-Mutant | -7/Factory Hacker-Mutant | -7/Lower Caves Hacker-Mutant | -7/Lower Caves Hacker-Mutant | -7/Zion Hacker-Mutant | -6/Proximity Caves Scout | -6/Factory Scout | -6/Lower Caves Scout | -6/Lower Caves Scout | -6/Data Miner Scout | -5/Proximity Caves Scout | -5/Factory Scout | -5/Upper Caves Hacker-Scout | -5/Upper Caves Hacker-Scout | -5/Zhirov Hacker-Scout | -4/Proximity Caves Hacker-Scout | -4/Factory Hacker-Scout | -4/Extension Mutant | -3/Research Resources | -11 -10 -10 -8 -7 -7 -7 -7 -6 -6 -6 -6 -6 -5 -5 -5 -5 -5 -4 -4 -4 -3 ----------- Run | Yrd Mat Sub Mat Fac Low Low Zio Pro Fac Low Low Dat Pro Fac Upp Upp Zhi Pro Fac Ext Res Matter Collected 5143 | 291 518 437 1671 649 246 86 15 118 206 160 73 . 21 96 28 97 . 107 6 138 180 Remotely . | . . . . . . . . . . . . . . . . . . . . . . Salvage Created 6343 | 133 756 620 1742 621 320 149 . 200 611 353 173 . . 95 . . . 37 . 110 423 Parts 334 | 8 53 39 86 31 6 1 . 21 47 13 3 . . 3 . . . 5 . 4 14 Haulers Intercepted 12 | . 2 . 4 2 . . . . 1 . 1 . . . . . . . . 1 1 Recyclers Shooed 6 | . 1 . 4 1 . . . . . . . . . . . . . . . . . Parts Field Recycled . | . . . . . . . . . . . . . . . . . . . . . . Retrieved Matter . | . . . . . . . . . . . . . . . . . . . . . . Parts Self-Destructed 68 | . . 19 . . 6 6 . 20 . 10 3 . . . . . . 4 . . . Prevented . | . . . . . . . . . . . . . . . . . . . . . . Kills | -11 -10 -10 -8 -7 -7 -7 -7 -6 -6 -6 -6 -6 -5 -5 -5 -5 -5 -4 -4 -4 -3 ------- Run | Yrd Mat Sub Mat Fac Low Low Zio Pro Fac Low Low Dat Pro Fac Upp Upp Zhi Pro Fac Ext Res Combat Hostiles Destroyed 97 | . 13 14 20 10 5 3 . 8 2 7 5 . . 1 . . . 4 . . 5 Melee 11 | . . . . 2 1 1 . 4 1 . . . . . . . . . . . 2 Guns 18 | . 13 4 1 . . . . . . . . . . . . . . . . . . Cannons 32 | . . 10 14 2 4 . . . . 1 . . . 1 . . . . . . . AOE 30 | . . . . 6 . 2 . 4 1 6 4 . . . . . . 4 . . 3 Classes Destroyed 21 | 2 6 3 2 2 1 . . 2 1 1 . . . . . . . . . . 1 Worker 16 | . 4 . 7 1 . . . . 4 . . . . . . . . . . . . Builder 7 | . . . 4 . . . . . 3 . . . . . . . . . . . . Tunneler 5 | 3 . . . . . . . . 2 . . . . . . . . . . . . Hauler 12 | . 2 . 4 2 . . . . 1 . 1 . . . . . . . . 1 1 Recycler 13 | 1 2 . 4 3 . . . . 2 . . . . . . . . . . . 1 Minesweeper 1 | . . . . . 1 . . . . . . . . . . . . . . . . Mechanic 2 | . . . 1 . . . . . 1 . . . . . . . . . . . . Operator 2 | . 1 . . . . . . . 1 . . . . . . . . . . . . Drone 2 | . . . . . . . . 2 . . . . . . . . . . . . . Watcher 10 | . 2 . 4 2 . . . . 1 . . . . 1 . . . . . . . Swarmer 38 | . 6 3 4 5 4 2 . 6 . 3 . . . . . . . 4 . . 1 Cutter 2 | . . . . . . . . . 2 . . . . . . . . . . . . Grunt 34 | . 7 2 13 1 1 1 . . . 3 5 . . 1 . . . . . . . Duelist 1 | . . . . . . . . . . 1 . . . . . . . . . . . Sentry 5 | . . 1 3 1 . . . . . . . . . . . . . . . . . Specialist 2 | . . . . . . . . . . . . . . . . . . . . . 2 Hunter 3 | . . . . 1 . . . . 2 . . . . . . . . . . . . Programmer 2 | . . . . 2 . . . . . . . . . . . . . . . . . Behemoth 1 | . . . . . . . . 1 . . . . . . . . . . . . . Tracker 2 | . . . . . . . . . . . . . . . . . . . . . 2 Cobbler 1 | . . 1 . . . . . . . . . . . . . . . . . . . Subdweller 10 | . . 8 2 . . . . . . . . . . . . . . . . . . Best Kill Streak 12 | 4 4 2 12 4 4 2 . 4 3 4 6 . . 1 . . . 4 . 1 3 Combat Bots Only 6 | . 4 2 6 4 4 2 . 4 1 4 5 . . 1 . . . 4 . . 3 Max Kills in Single Turn 4 | 1 1 1 2 4 1 1 . 4 2 3 2 . . 1 . . . 2 . 1 2 Gunslinging . | . . . . . . . . . . . . . . . . . . . . . . Exploded 4 | . . . . 4 . 1 . 4 1 3 2 . . . . . . 2 . . 2 Melee 1 | . . . . 1 1 1 . 1 1 . . . . . . . . . . . 1 Uniques/NPCs Destroyed . | . . . . . . . . . . . . . . . . . . . . . . Combat | -11 -10 -10 -8 -7 -7 -7 -7 -6 -6 -6 -6 -6 -5 -5 -5 -5 -5 -4 -4 -4 -3 -------- Run | Yrd Mat Sub Mat Fac Low Low Zio Pro Fac Low Low Dat Pro Fac Upp Upp Zhi Pro Fac Ext Res Hostile Shots Fired 922 | . 63 78 115 85 24 39 . 22 54 3 24 10 24 20 . 12 . 25 35 133 156 Missed 367 | . 11 23 29 47 5 24 . 8 30 2 5 5 11 6 . 3 . 13 21 46 78 Damage Taken 9893 | . 522 822 1251 537 300 165 . 287 383 20 376 238 250 230 . 184 . 291 330 2003 1704 Core 2397 | . 36 95 202 41 17 4 . 45 10 . 23 . 20 63 . 121 . 70 45 781 824 Absorbed by Shields 140 | . . . . . . . . . 20 . . . . 15 . . . . . 105 . Redirected to Shielding 128 | . . . . 58 19 26 . . . . 11 . . . . . . 14 . . . Regen/Repaired (Parts) 467 | . 87 . 256 . . . . . 124 . . . . . . . . . . . . Core Remaining (%) 69 | 100 . 47 63 . . . . 84 . . . . 93 . . . . 74 . 28 . Volleys Fired 346 | 7 68 104 96 14 11 2 . 1 2 9 10 . 3 4 . . . 4 . 9 2 Largest 2 | 2 2 2 2 2 2 1 . 1 1 2 2 . 1 2 . . . 1 . 1 1 Hottest 175 | 70 85 160 160 96 96 36 . 36 36 170 170 . 90 175 . . . 43 . 105 60 Shots Fired 585 | 14 135 145 190 23 22 2 . 1 2 12 13 . 3 8 . . . 4 . 9 2 Gun 205 | 14 135 39 17 . . . . . . . . . . . . . . . . . . Cannon 306 | . . 60 173 19 22 . . . . 6 6 . 3 8 . . . . . 9 . Launcher 33 | . . 6 . 3 . 2 . 1 2 6 7 . . . . . . 4 . . 2 Special 41 | . . 40 . 1 . . . . . . . . . . . . . . . . . Kinetic 235 | 7 117 22 48 19 22 . . . . . . . . . . . . . . . . Thermal 307 | 7 18 108 142 . . . . . . 6 6 . 3 8 . . . . . 9 . Explosive 29 | . . 2 . 3 . 2 . 1 2 6 7 . . . . . . 4 . . 2 Electromagnetic 13 | . . 13 . . . . . . . . . . . . . . . . . . . Robot Hit Streak 20 | 9 8 20 11 4 9 . . . . 4 2 . . 4 . . . . . 9 11 Robot Miss Streak 8 | . 4 5 8 3 4 . . . . 3 3 . . 1 . . . 2 . . . Penetration Max . | . . . . . . . . . . . . . . . . . . . . . . Secondary Targets 1 | . 1 . . . . . . . . . . . . . . . . . . . . Max Gunslinging Chain 1 | . 1 . . . . . . . . . . . . . . . . . . . . Shots Hit Robots 414 | 9 76 64 107 36 21 7 . 13 33 10 4 1 5 7 . . . . . 10 11 Core Hits 248 | 4 38 29 49 29 9 6 . 16 20 18 15 . 1 3 . . . 3 . . 8 Critical Kills 9 | . . 1 7 . . . . . . . 1 . . . . . . . . . . Critical Parts Destroyed . | . . . . . . . . . . . . . . . . . . . . . . Critical Strikes 22 | . 1 1 8 3 1 1 . . 2 1 1 . 1 . . . . . . . 2 Burn 1 | . 1 . . . . . . . . . . . . . . . . . . . . Meltdown 8 | . . . 7 . . . . . . . 1 . . . . . . . . . . Destroy 1 | . . 1 . . . . . . . . . . . . . . . . . . . Blast 3 | . . . 1 1 1 . . . . . . . . . . . . . . . . Impale 9 | . . . . 2 . 1 . . 2 1 . . 1 . . . . . . . 2 Melee Attacks 237 | . . . . 49 8 13 2 30 78 6 . 1 12 9 . . . . 5 2 22 Impact 12 | . . . . . . . . . . . . . . 3 . . . . 5 2 2 Slashing . | . . . . . . . . . . . . . . . . . . . . . . Piercing 225 | . . . . 49 8 13 2 30 78 6 . 1 12 6 . . . . . . 20 Sneak Attacks 40 | . . . . 10 2 . . 3 17 . . 1 4 . . . . . . 1 2 Combat Hostiles 3 | . . . . . 1 . . 1 1 . . . . . . . . . . . . Follow-up Attacks . | . . . . . . . . . . . . . . . . . . . . . . Damage Inflicted 15918 | 121 975 1462 3130 1837 638 536 . 753 1829 896 1141 64 236 289 . . . 313 . 489 1209 Guns 1788 | 121 975 504 188 . . . . . . . . . . . . . . . . . . Cannons 5066 | . . 920 2890 297 251 . . . . 89 64 . . 203 . . . . . 352 . Explosions 4021 | . . 29 52 490 . 77 . 370 430 549 1077 . . . . . . 313 . . 634 Melee 5034 | . . . . 1050 387 459 . 383 1399 258 . 64 236 86 . . . . . 137 575 Ramming . | . . . . . . . . . . . . . . . . . . . . . . Kinetic 2300 | 61 826 190 675 297 251 . . . . . . . . . . . . . . . . Thermal 4717 | 60 149 1045 2403 . . . . . 352 89 64 . . 203 . . . . . 352 . Explosive 3617 | . . 29 . 490 . 77 . 370 78 549 1077 . . . . . . 313 . . 634 Electromagnetic 250 | . . 198 52 . . . . . . . . . . . . . . . . . . Impact 223 | . . . . . . . . . . . . . . 86 . . . . . 137 . Slashing . | . . . . . . . . . . . . . . . . . . . . . . Piercing 4811 | . . . . 1050 387 459 . 383 1399 258 . 64 236 . . . . . . . 575 Highest Corruption 19 | . . 1 . 2 2 2 . . . . . . . 1 1 2 2 2 . 19 10 Average Corruption 2 | . . 1 . 1 2 1 . . . . . . . 1 1 1 2 2 . 15 5 Corruption Purged 2 | . . . . . . 2 . . . . . . . . . . . . . . . Corruption Blocked . | . . . . . . . . . . . . . . . . . . . . . . Effects 26 | . . 1 . 1 5 2 . . . . . . . 2 . 1 1 7 . 6 . Message Errors 5 | . . . . . 1 . . . . . . . . 2 . 1 . 1 . . . Matter Fused 5 | . . . . . 1 . . . . . . . . . . . . 3 . 1 . Heat Flow Errors 5 | . . 1 . 1 . 2 . . . . . . . . . . . . . 1 . Parts Rejected 1 | . . . . . . . . . . . . . . . . . . 1 . . . Data Loss (minor) 5 | . . . . . 2 . . . . . . . . . . . 1 1 . 1 . Data Loss (major) 1 | . . . . . . . . . . . . . . . . . . . . 1 . Alerts 2 | . . . . . 1 . . . . . . . . . . . . 1 . . . Misdirections 2 | . . . . . . . . . . . . . . . . . . . . 2 . Overload Shots . | . . . . . . . . . . . . . . . . . . . . . . Overflow Damage 1491 | . . 31 46 365 96 77 . 18 466 64 30 . . . . . . 35 . 113 150 Projectiles 91 | . . 31 46 13 . . . . . . 1 . . . . . . . . . . Explosions 266 | . . . . . . . . . 102 . 29 . . . . . . 35 . . 100 Melee 1134 | . . . . 352 96 77 . 18 364 64 . . . . . . . . . 113 50 Knockbacks 17 | . . . 10 5 2 . . . . . . . . . . . . . . . . Impact . | . . . . . . . . . . . . . . . . . . . . . . Kinetic 14 | . . . 7 5 2 . . . . . . . . . . . . . . . . Secondary 3 | . . . 3 . . . . . . . . . . . . . . . . . . Self-Inflicted Damage 478 | . . . 26 . . 13 . . 39 . . . . . . . . 71 . . 329 Shots 7 | . . . 1 . . 1 . . 1 . . . . . . . . 1 . . 3 Rammed . | . . . . . . . . . . . . . . . . . . . . . . Targets Rammed . | . . . . . . . . . . . . . . . . . . . . . . Kicked . | . . . . . . . . . . . . . . . . . . . . . . Crushed . | . . . . . . . . . . . . . . . . . . . . . . Highest Temperature 408 | 36 102 252 408 275 219 235 . . 18 315 375 . 138 402 . 19 . . . 326 . Average Temperature 94 | 13 27 78 111 76 104 113 . . 7 166 145 . 54 151 . 12 . . . 60 . Received Heat Transfer 2359 | . 225 171 648 57 81 66 . . 45 9 150 . 90 63 . 36 . 60 42 556 60 Effects 1 | . . . 1 . . . . . . . . . . . . . . . . . . Energy Bleed 1 | . . . 1 . . . . . . . . . . . . . . . . . . Siege Activations . | . . . . . . . . . . . . . . . . . . . . . . Robots Corrupted . | . . . . . . . . . . . . . . . . . . . . . . Combat Hostiles . | . . . . . . . . . . . . . . . . . . . . . . Parts Fried . | . . . . . . . . . . . . . . . . . . . . . . Impact Corruptions 1 | . . . . . . . . . . . . . . . . . . . . 1 . Robots Melted 8 | . . . 7 . . . . . . . 1 . . . . . . . . . . Combat Hostiles 6 | . . . 5 . . . . . . . 1 . . . . . . . . . . Parts Melted 7 | . 1 . 5 . . . . . . . . . . . . . . . . . 1 Heat Transferred 6142 | 185 464 1317 3197 . . . . . 200 111 74 . . 261 . . . . . 333 . Parts Sabotaged . | . . . . . . . . . . . . . . . . . . . . . . Parts Stolen . | . . . . . . . . . . . . . . . . . . . . . . Parts Stripped . | . . . . . . . . . . . . . . . . . . . . . . Power Chain Reactions . | . . . . . . . . . . . . . . . . . . . . . . Alert | -11 -10 -10 -8 -7 -7 -7 -7 -6 -6 -6 -6 -6 -5 -5 -5 -5 -5 -4 -4 -4 -3 ------- Run | Yrd Mat Sub Mat Fac Low Low Zio Pro Fac Low Low Dat Pro Fac Upp Upp Zhi Pro Fac Ext Res Peak Influence 1097 | 20 298 . 794 675 . . . . 1097 . . . . 672 . . . . 89 109 222 Initial 915 | . 13 . 42 335 . . . . 915 . . . . 462 . . . . 63 43 44 Average 391 | 5 117 . 541 457 . . . . 595 . . . . 533 . . . . 58 70 107 Maximum Alert Level 3 | . 1 . 3 2 . . . . 3 . . . . 2 . . . . . . 1 Low Security (%) 30 | 100 90 . 2 . . . . . . . . . . . . . . . 100 100 75 Level 1 19 | . 9 . 20 35 . . . . 24 . . . . . . . . . . . 24 Level 2 37 | . . . 55 64 . . . . 43 . . . . 100 . . . . . . . Level 3 12 | . . . 21 . . . . . 32 . . . . . . . . . . . . Level 4 . | . . . . . . . . . . . . . . . . . . . . . . Level 5 . | . . . . . . . . . . . . . . . . . . . . . . High Security . | . . . . . . . . . . . . . . . . . . . . . . Max Security . | . . . . . . . . . . . . . . . . . . . . . . Squads Dispatched 28 | . 3 . 7 5 . . . . 7 . . . . 1 . . . . . . 5 Investigation 12 | . 1 . 4 2 . . . . 4 . . . . 1 . . . . . . . Extermination 3 | . . . . 2 . . . . . . . . . . . . . . . . 1 Reinforcement 8 | . 2 . 1 1 . . . . 2 . . . . . . . . . . . 2 Assault 2 | . . . 1 . . . . . 1 . . . . . . . . . . . . Garrison 1 | . . . 1 . . . . . . . . . . . . . . . . . . Intercept 2 | . . . . . . . . . . . . . . . . . . . . . 2 Searches Triggered 2 | . . . . . . . . . 2 . . . . . . . . . . . . Construction Impeded . | . . . . . . . . . . . . . . . . . . . . . . Haulers Reinforced 1 | . . . . 1 . . . . . . . . . . . . . . . . . Active Scanning Responses . | . . . . . . . . . . . . . . . . . . . . . . Cargo Convoy Interrupts . | . . . . . . . . . . . . . . . . . . . . . . Stealth | -11 -10 -10 -8 -7 -7 -7 -7 -6 -6 -6 -6 -6 -5 -5 -5 -5 -5 -4 -4 -4 -3 --------- Run | Yrd Mat Sub Mat Fac Low Low Zio Pro Fac Low Low Dat Pro Fac Upp Upp Zhi Pro Fac Ext Res Distress Signals 12 | . 1 . 2 2 1 . . 1 . . . . 1 1 . . . . . 2 1 Communications Jammed . | . . . . . . . . . . . . . . . . . . . . . . Distress Signals . | . . . . . . . . . . . . . . . . . . . . . . Times Spotted 305 | . 25 42 50 26 7 9 . 16 23 3 4 4 7 15 . 5 . 14 12 14 29 Peak Tracking Total 13 | . 4 4 5 5 6 4 . 8 3 3 5 4 5 5 . 3 . 4 8 11 13 Tactical Retreats 40 | . . 2 2 5 2 2 . 1 5 . . . 2 4 . 2 . 3 2 6 2 Traps | -11 -10 -10 -8 -7 -7 -7 -7 -6 -6 -6 -6 -6 -5 -5 -5 -5 -5 -4 -4 -4 -3 ------- Run | Yrd Mat Sub Mat Fac Low Low Zio Pro Fac Low Low Dat Pro Fac Upp Upp Zhi Pro Fac Ext Res Traps Triggered 12 | . . 2 1 2 . . . . 3 . . . . 2 . . . . 1 . 1 Indirectly . | . . . . . . . . . . . . . . . . . . . . . . Trap Hack Attempts 49 | . 49 . . . . . . . . . . . . . . . . . . . . Triggered . | . . . . . . . . . . . . . . . . . . . . . . Disarmed . | . . . . . . . . . . . . . . . . . . . . . . Reprogrammed 5 | . 5 . . . . . . . . . . . . . . . . . . . . Reused . | . . . . . . . . . . . . . . . . . . . . . . Traps Extracted . | . . . . . . . . . . . . . . . . . . . . . . Installed 1 | . . . 1 . . . . . . . . . . . . . . . . . . Triggered 3 | . . . . . . 1 . . . . . . . . . 2 . . . . . Most Traps Carried 6 | . . . . . 5 6 6 6 6 6 6 6 6 6 6 6 6 6 6 6 6 Machines | -11 -10 -10 -8 -7 -7 -7 -7 -6 -6 -6 -6 -6 -5 -5 -5 -5 -5 -4 -4 -4 -3 ---------- Run | Yrd Mat Sub Mat Fac Low Low Zio Pro Fac Low Low Dat Pro Fac Upp Upp Zhi Pro Fac Ext Res Machines Disabled 16 | . . 2 6 2 . 1 . . 3 . . . . 1 . . . . . . 1 Max in Single Turn 2 | . . 1 2 1 . 1 . . 2 . . . . 1 . . . . . . 1 Garrison Access 4 | . . . . 1 . . . . 3 . . . . . . . . . . . . Machines Repaired . | . . . . . . . . . . . . . . . . . . . . . . Machines Dismantled . | . . . . . . . . . . . . . . . . . . . . . . Machines Sabotaged . | . . . . . . . . . . . . . . . . . . . . . . Overloaded Fab Kills . | . . . . . . . . . . . . . . . . . . . . . . Hacking | -11 -10 -10 -8 -7 -7 -7 -7 -6 -6 -6 -6 -6 -5 -5 -5 -5 -5 -4 -4 -4 -3 --------- Run | Yrd Mat Sub Mat Fac Low Low Zio Pro Fac Low Low Dat Pro Fac Upp Upp Zhi Pro Fac Ext Res Machines Accessed 87 | . 8 2 11 13 . 1 1 . 22 . . 4 1 3 . 3 9 . 3 1 5 Terminals 38 | . 6 . 6 4 . . . . 12 . . . 1 3 . . . . 3 1 2 Fabricators 2 | . . . . 1 . . . . 1 . . . . . . . . . . . . Repair Stations 5 | . 1 . 1 2 . . . . 1 . . . . . . . . . . . . Recycling Units 12 | . 1 . 2 3 . . . . 4 . . . . . . . . . . . 2 Scanalyzers 4 | . . . 1 2 . . . . 1 . . . . . . . . . . . . Garrison Access 6 | . . . 1 1 . . . . 3 . . . . . . . . . . . 1 Total Hacks 292 | . 26 13 37 39 . 1 6 . 65 . . 31 2 4 . 7 44 . 7 1 9 Successful 202 | . 13 13 18 26 . 1 6 . 32 . . 31 2 1 . 7 44 . 5 1 2 Failed 90 | . 13 . 19 13 . . . . 33 . . . . 3 . . . . 2 . 7 Catastrophic 10 | . 1 . 1 1 . . . . 3 . . . . 2 . . . . . . 2 Database Lockouts . | . . . . . . . . . . . . . . . . . . . . . . Manual 55 | . 13 . 11 13 . . . . 17 . . . . 1 . . . . . . . Terminals 110 | . 21 . 24 8 . . . . 38 . . . 2 4 . . . . 7 1 5 Fabricators 6 | . . . . 3 . . . . 3 . . . . . . . . . . . . Repair Stations 17 | . 2 . 5 5 . . . . 5 . . . . . . . . . . . . Recycling Units 32 | . 3 . 5 14 . . . . 7 . . . . . . . . . . . 3 Scanalyzers 14 | . . . 2 8 . . . . 4 . . . . . . . . . . . . Garrison Access 11 | . . . 1 1 . . . . 8 . . . . . . . . . . . 1 Terminal Hacks 143 | . 7 13 7 2 . 1 6 . 15 . . 31 2 1 . 7 44 . 5 1 1 Record 68 | . . 12 . . . . . . . . . 11 2 . . 5 36 . 1 . 1 Part Schematic 22 | . . . . . . . 6 . . . . 12 . . . . 4 . . . . Robot Schematic 5 | . . . . . . . . . . . . 5 . . . . . . . . . Robot Analysis 7 | . 5 . . . . . . . 2 . . . . . . . . . . . . Prototype ID Bank 14 | . 1 . 4 . . . . . 2 . . 3 . . . . 4 . . . . Open Door 5 | . . . . . . 1 . . . . . . . . . 2 . . 1 1 . Open DSF 1 | . . . . . . . . . . . . . . 1 . . . . . . . Emergency Access Points 2 | . . . . . . . . . 1 . . . . . . . . . 1 . . Terminal Index 1 | . . . . 1 . . . . . . . . . . . . . . . . . Alert Level 2 | . . . . . . . . . 2 . . . . . . . . . . . . Unreport Threat 3 | . . . . . . . . . 2 . . . . . . . . . 1 . . Locate Traps 4 | . . . 2 1 . . . . 1 . . . . . . . . . . . . Hauler Manifests 2 | . . . 1 . . . . . 1 . . . . . . . . . . . . Zone Layout 6 | . 1 . . . . . . . 4 . . . . . . . . . 1 . . Derelict Proto ID Bank 1 | . . 1 . . . . . . . . . . . . . . . . . . . Fabricator Hacks 1 | . . . . 1 . . . . . . . . . . . . . . . . . Network Status 1 | . . . . 1 . . . . . . . . . . . . . . . . . Repair Station Hacks 10 | . 2 . 4 1 . . . . 3 . . . . . . . . . . . . Scan Component 6 | . 1 . 2 1 . . . . 2 . . . . . . . . . . . . Repair 4 | . 1 . 2 . . . . . 1 . . . . . . . . . . . . Recycling Unit Hacks 9 | . 1 . 2 3 . . . . 2 . . . . . . . . . . . 1 Retrieve Matter 1 | . . . 1 . . . . . . . . . . . . . . . . . . Retrieve Components 8 | . 1 . 1 3 . . . . 2 . . . . . . . . . . . 1 Scanalyzer 14 | . . . 2 8 . . . . 4 . . . . . . . . . . . . Insert Component 7 | . . . 1 4 . . . . 2 . . . . . . . . . . . . Analyze 7 | . . . 1 4 . . . . 2 . . . . . . . . . . . . Garrison Access Hacks 4 | . . . 1 1 . . . . 2 . . . . . . . . . . . . Unlock Access 1 | . . . 1 . . . . . . . . . . . . . . . . . . Seal Access 3 | . . . . 1 . . . . 2 . . . . . . . . . . . . Unauthorized Hacks 21 | . 3 . 2 10 . . . . 6 . . . . . . . . . . . . Terminals 9 | . 2 . 1 1 . . . . 5 . . . . . . . . . . . . Track 1 | . . . . . . . . . 1 . . . . . . . . . . . . Assimilate 1 | . . . . . . . . . 1 . . . . . . . . . . . . Botnet 6 | . 1 . 1 1 . . . . 3 . . . . . . . . . . . . Disrupt 1 | . 1 . . . . . . . . . . . . . . . . . . . . Fabricators . | . . . . . . . . . . . . . . . . . . . . . . Repair Stations 1 | . . . . 1 . . . . . . . . . . . . . . . . . Mechanics 1 | . . . . 1 . . . . . . . . . . . . . . . . . Recycling Units 11 | . 1 . 1 8 . . . . 1 . . . . . . . . . . . . Monitor 2 | . . . . 2 . . . . . . . . . . . . . . . . . Reject 2 | . . . . 2 . . . . . . . . . . . . . . . . . Recyclers 2 | . . . . 2 . . . . . . . . . . . . . . . . . Mask 4 | . . . 1 2 . . . . 1 . . . . . . . . . . . . Tunnel 1 | . 1 . . . . . . . . . . . . . . . . . . . . Scanalyzers . | . . . . . . . . . . . . . . . . . . . . . . Garrison Access . | . . . . . . . . . . . . . . . . . . . . . . Data Cores Recovered . | . . . . . . . . . . . . . . . . . . . . . . Used . | . . . . . . . . . . . . . . . . . . . . . . Hacking Detections 55 | . 5 . 9 9 . . . . 22 . . . . 3 . . . . 2 . 5 Full Trace Events 12 | . 2 . 3 2 . . . . 4 . . . . 1 . . . . . . . Feedback Events 2 | . . . . 1 . . . . 1 . . . . . . . . . . . . Hackware Fried 2 | . . . . 1 . . . . 1 . . . . . . . . . . . . Feedback Blocked . | . . . . . . . . . . . . . . . . . . . . . . Robot Schematics Acquired 8 | . . . . . . . 3 . . . . 5 . . . . . . . . . Robots Built . | . . . . . . . . . . . . . . . . . . . . . . Authchips . | . . . . . . . . . . . . . . . . . . . . . . Time . | . . . . . . . . . . . . . . . . . . . . . . Total Robot Build Rating . | . . . . . . . . . . . . . . . . . . . . . . Part Schematics Acquired 43 | . . . 1 3 . . 21 . 2 . . 12 . . . . 4 . . . . Parts Built . | . . . . . . . . . . . . . . . . . . . . . . Authchips . | . . . . . . . . . . . . . . . . . . . . . . Time . | . . . . . . . . . . . . . . . . . . . . . . Total Part Build Rating . | . . . . . . . . . . . . . . . . . . . . . . Parts Repaired 4 | . 1 . 2 . . . . . 1 . . . . . . . . . . . . Time 109 | . 26 . 64 . . . . . 19 . . . . . . . . . . . . Parts Recycled . | . . . . . . . . . . . . . . . . . . . . . . Recycled Matter . | . . . . . . . . . . . . . . . . . . . . . . Retrieved Matter . | . . . . . . . . . . . . . . . . . . . . . . Retrieved Components 29 | . 10 . 9 5 . . . . 3 . . . . . . . . . . . 2 Parts Scanalyzed 7 | . . . 1 4 . . . . 2 . . . . . . . . . . . . Part Schematics Acquired 6 | . . . 1 3 . . . . 2 . . . . . . . . . . . . Parts Damaged 1 | . . . . . . . . . 1 . . . . . . . . . . . . Bothacking | -11 -10 -10 -8 -7 -7 -7 -7 -6 -6 -6 -6 -6 -5 -5 -5 -5 -5 -4 -4 -4 -3 ------------ Run | Yrd Mat Sub Mat Fac Low Low Zio Pro Fac Low Low Dat Pro Fac Upp Upp Zhi Pro Fac Ext Res Used RIF Installer . | . . . . . . . . . . . . . . . . . . . . . . Robots Hacked 1 | . . . . 1 . . . . . . . . . . . . . . . . . Non-combat 1 | . . . . 1 . . . . . . . . . . . . . . . . . Combat . | . . . . . . . . . . . . . . . . . . . . . . Robot Hacks Applied 1 | . . . . 1 . . . . . . . . . . . . . . . . . parse_system 1 | . . . . 1 . . . . . . . . . . . . . . . . . Relay Couplers Released . | . . . . . . . . . . . . . . . . . . . . . . Fabnet Peak Effective % . | . . . . . . . . . . . . . . . . . . . . . . Robots Rewired . | . . . . . . . . . . . . . . . . . . . . . . Allies Hacked . | . . . . . . . . . . . . . . . . . . . . . . Hacks Repelled . | . . . . . . . . . . . . . . . . . . . . . . Allies | -11 -10 -10 -8 -7 -7 -7 -7 -6 -6 -6 -6 -6 -5 -5 -5 -5 -5 -4 -4 -4 -3 -------- Run | Yrd Mat Sub Mat Fac Low Low Zio Pro Fac Low Low Dat Pro Fac Upp Upp Zhi Pro Fac Ext Res Total Allies 24 | . . 10 . . . . 4 2 3 . . . 1 . . . . . . 1 3 Largest Group 8 | . . 8 8 . . . 4 5 1 . . . 1 . . . . . . 1 3 Highest-Rated Group 197 | . . 152 152 . . . 112 197 10 . . . 85 . . . . . . 143 138 Highest-Rated Ally 143 | . . 19 19 . . . 31 85 10 . . . 85 . . . . . . 143 46 Total Orders . | . . . . . . . . . . . . . . . . . . . . . . Ally Attacks 131 | . . 10 75 . . . . 17 . . . . . . . . . . . 4 25 Total Damage 2466 | . . 207 1193 . . . . 316 . . . . . . . . . . . 120 630 Kills 27 | . . 3 16 . . . . 6 . . . . . . . . . . . . 2 Allies Corrupted . | . . . . . . . . . . . . . . . . . . . . . . Allies Melted . | . . . . . . . . . . . . . . . . . . . . . . Intel | -11 -10 -10 -8 -7 -7 -7 -7 -6 -6 -6 -6 -6 -5 -5 -5 -5 -5 -4 -4 -4 -3 ------- Run | Yrd Mat Sub Mat Fac Low Low Zio Pro Fac Low Low Dat Pro Fac Upp Upp Zhi Pro Fac Ext Res Robot Analysis Total 141 | . 5 . . . . . . . 2 . . 134 . . . . . . . . . Derelict Logs Recovered 15 | . . 2 . . 2 1 2 1 . 1 1 . 2 . . 1 . 2 . . . Drone Launches . | . . . . . . . . . . . . . . . . . . . . . . Drone Recoveries . | . . . . . . . . . . . . . . . . . . . . . . Exploration | -11 -10 -10 -8 -7 -7 -7 -7 -6 -6 -6 -6 -6 -5 -5 -5 -5 -5 -4 -4 -4 -3 ------------- Run | Yrd Mat Sub Mat Fac Low Low Zio Pro Fac Low Low Dat Pro Fac Upp Upp Zhi Pro Fac Ext Res Turns Passed 16359 | 90 1660 4855 2540 1272 398 466 576 339 1324 187 183 43 290 216 82 307 52 553 133 258 535 Spaces Moved 17300 | 48 850 2659 1063 2062 549 899 1074 662 2213 395 396 119 641 472 291 683 153 765 348 318 640 Core 117 | 11 . . . . . . . . . . . . . . . . . 34 . 59 13 Treads 4514 | . 763 2659 1063 . . . . . . . . . . . . . . . . 29 . Legs . | . . . . . . . . . . . . . . . . . . . . . . Wheels 124 | 37 87 . . . . . . . . . . . . . . . . . . . . Hover 617 | . . . . . . . . . . . . . . . . . . . . . 617 Flight 11928 | . . . . 2062 549 899 1074 662 2213 395 396 119 641 472 291 683 153 731 348 230 10 Fastest Speed 27 | 50 100 160 160 40 40 40 40 40 34 34 34 34 34 27 27 27 28 27 27 28 40 Average Speed 70 | 105 155 160 160 43 41 40 40 40 34 34 34 34 34 29 27 27 28 47 28 49 60 Slowest Speed 385 | 150 240 250 160 80 80 80 40 40 89 89 89 34 34 385 27 28 29 300 103 250 150 Overloaded Moves . | . . . . . . . . . . . . . . . . . . . . . . Propulsion Burnouts . | . . . . . . . . . . . . . . . . . . . . . . Robots Hopped 20 | . . . . 4 . 1 . . 4 . . . . 2 . . . 1 4 4 . Cave-ins Triggered . | . . . . . . . . . . . . . . . . . . . . . . Teleports 1 | . . . . . . . . . . . . . . . . . . . . . 1 Exploration Rate (%) 59 | 5 97 96 61 40 64 77 85 70 67 63 65 83 84 20 56 61 63 71 14 43 25 Regions Visited 21 Branch Regions 14 Pre-discovered Areas 43 | . 1 3 . . 1 . 2 . . 1 . 31 . . . 1 3 . . . . Known Exits Taken 18 | . . . 1 1 1 1 1 1 1 1 1 1 1 1 1 1 1 1 1 1 . Unknown Exits Taken 3 | 1 1 1 . . . . . . . . . . . . . . . . . . . Scrap Searched 37 | . . 15 . . 2 2 1 3 . 1 2 . 3 . 1 4 . 3 . . . Spaces Dug 180 | . . 47 3 9 . 7 . 7 40 24 . . 7 8 . . . 17 5 1 5 Terrain Destroyed 595 | . . 120 45 51 8 9 . 7 69 54 78 . 8 9 . . . 73 5 1 58 Melee 65 | . . . . 8 . . . . 33 . . . 5 8 . . . . 5 1 5 Projectile 88 | . . 23 45 4 8 . . . . 3 1 . 3 1 . . . . . . . AOE 442 | . . 97 . 39 . 9 . 7 36 51 77 . . . . . . 73 . . 53 Terrain Rammed . | . . . . . . . . . . . . . . . . . . . . . . Walls Destroyed . | . . . . . . . . . . . . . . . . . . . . . . Machines Disabled . | . . . . . . . . . . . . . . . . . . . . . . Actions | -11 -10 -10 -8 -7 -7 -7 -7 -6 -6 -6 -6 -6 -5 -5 -5 -5 -5 -4 -4 -4 -3 --------- Run | Yrd Mat Sub Mat Fac Low Low Zio Pro Fac Low Low Dat Pro Fac Upp Upp Zhi Pro Fac Ext Res Total 20477 | 73 1068 3049 1719 2365 684 987 1218 709 2702 422 426 119 696 527 292 799 160 947 370 401 744 Wait 1741 | . 21 82 456 140 101 55 127 7 325 6 14 . 36 14 . 108 . 168 . 60 21 Move 17244 | 47 849 2658 1062 2053 548 896 1073 661 2205 394 395 118 640 467 290 682 152 762 341 311 640 Hop 15 | . . . . 4 . 1 . . 3 . . . . 2 . . . 1 2 2 . Pick Up 196 | 12 32 48 29 20 1 5 1 2 16 . 1 . 1 4 . 2 1 1 3 1 16 Fast Attach 78 | . 4 5 11 12 1 3 7 1 2 . . . . 2 2 2 3 4 2 4 13 Attach 81 | 7 4 11 9 12 4 1 . 3 5 . . . . 6 . . . 1 2 6 10 Detach 21 | . . 1 1 4 3 1 . 1 1 . . . . 1 . . . 1 . 1 6 Swap 116 | . 13 22 15 23 6 2 . 1 11 7 5 . 3 2 . 1 1 1 1 1 1 Drop 221 | . 28 51 39 34 1 8 8 2 15 . 1 . 1 1 . 4 3 4 4 4 13 Fire 346 | 7 68 104 96 14 11 2 . 1 2 9 10 . 3 4 . . . 4 . 9 2 Melee 237 | . . . . 49 8 13 2 30 78 6 . 1 12 9 . . . . 5 2 22 Ram . | . . . . . . . . . . . . . . . . . . . . . . Kick . | . . . . . . . . . . . . . . . . . . . . . . Crush . | . . . . . . . . . . . . . . . . . . . . . . Escape Stasis 64 | . . . . . . . . . 39 . . . . 15 . . . . 10 . . Rewire 59 | . . 59 . . . . . . . . . . . . . . . . . . . Trap 50 | . 49 . 1 . . . . . . . . . . . . . . . . . . Miscellaneous 8 | . . 8 . . . . . . . . . . . . . . . . . . . Route ------- -11/Scrapyard -10/Materials (discovered 6 exits: [*Mat x3] / [*Min x2] / *Sub) -10/Subcaves (discovered 3 exits: *Mat x2 / [*Rec]) -8/Materials (discovered 3 exits: *Fac x2 / Gar) -7/Factory (discovered 3 exits: *Fac / *Low x2) -7/Lower Caves -7/Lower Caves -7/Zion -6/Proximity Caves -6/Factory (discovered 6 exits: *Fac x4 / *Low x2) -6/Lower Caves -6/Lower Caves -6/Data Miner -5/Proximity Caves -5/Factory -5/Upper Caves -5/Upper Caves (discovered 2 exits: *Fac / *Zhi) -5/Zhirov -4/Proximity Caves -4/Factory -4/Extension (discovered 2 exits: *Res / [*Cet]) -3/Research (discovered 3 exits: *Arm / *Tes x2) History --------- Turn | Location | Event 13 | -11/Scrapyard | Discovered new exit (range 16) 91 | -11/Scrapyard | Entered Materials 306 | -10/Materials | Discovered new exit (range 12) 318 | -10/Materials | Build established: Mutant 824 | -10/Materials | Discovered new exit (range 12) 1051 | -10/Materials | Discovered new exit (range 12) 1051 | -10/Materials | Discovered new exit (range 4) 1139 | -10/Materials | Repaired Lgt. Treads 1380 | -10/Materials | Discovered new exit (range 14) 1743 | -10/Materials | Discovered new exit (range 6) 1751 | -10/Materials | Entered Subcaves 2403 | -10/Subcaves | Discovered new exit (range 12) 2469 | -10/Subcaves | Build established: Subdweller-Mutant 2540 | -10/Subcaves | Shifting Twisted Machinery released Sub. Shrapnel Launcher 2561 | -10/Subcaves | Shifting Twisted Machinery released Sub. Monowheel 3151 | -10/Subcaves | Build established: Derelict-Mutant 3258 | -10/Subcaves | Visited triangular shrine 3269 | -10/Subcaves | Found Prototype Device 3275 | -10/Subcaves | Identified V3-11A's Pendant 3280 | -10/Subcaves | Befriended Subdweller 3577 | -10/Subcaves | Build established: Mutant 3631 | -10/Subcaves | Shifting Twisted Machinery released Sub. Laser 3646 | -10/Subcaves | Shifting Twisted Machinery released Sub. Shrapnel Launcher 4079 | -10/Subcaves | A swath of the cavern ceiling suddenly collapsed 4365 | -10/Subcaves | Befriended Subdweller 4375 | -10/Subcaves | Befriended Subdweller 4395 | -10/Subcaves | Visited Clippyterm 4400 | -10/Subcaves | Learned location of Section 7 (-2) 4434 | -10/Subcaves | Core integrity fell below 50% 4435 | -10/Subcaves | Befriended Subdweller 4435 | -10/Subcaves | Befriended Subdweller 4587 | -10/Subcaves | Learned location of 1 exit from Materials 4623 | -10/Subcaves | Shifting Twisted Machinery released Sub. Power Source 4628 | -10/Subcaves | Shifting Twisted Machinery released Sub. Monowheel 4654 | -10/Subcaves | Discovered new exit (range 14) 4876 | -10/Subcaves | Disturbed a concealed Subdweller 4880 | -10/Subcaves | Befriended Subdweller 5104 | -10/Subcaves | Discovered new exit (range 6) 5274 | -10/Subcaves | Ambushed by Subdweller buried in earth 5275 | -10/Subcaves | Befriended Subdweller 5286 | -10/Subcaves | Ambushed by Subdweller buried in earth 5286 | -10/Subcaves | Ambushed by Subdweller buried in earth 5355 | -10/Subcaves | Ambushed by Subdweller buried in earth 5409 | -10/Subcaves | Learned location of Storage (-7) 5410 | -10/Subcaves | Befriended Subdweller 5410 | -10/Subcaves | Befriended Subdweller 5466 | -10/Subcaves | Visited 4L-MR0's lab 5498 | -10/Subcaves | Found Flightbrick 5583 | -10/Subcaves | Learned location of Zion (-7) 5583 | -10/Subcaves | Met a Zionite searching for "candidates" 6000 | -10/Subcaves | Befriended Subdweller 6606 | -10/Subcaves | Entered Materials 6606 | -8/Materials | Accompanied by 8 allies 6606 | -8/Materials | Evolved 4 slots: Propulsion x2, Utility x2 6607 | -8/Materials | Identified exit to Factory 6842 | -8/Materials | Lost 3 allies 6892 | -8/Materials | Repaired Spk. Treads 6925 | -8/Materials | Repaired Spk. Treads 7056 | -8/Materials | Identified exit to Garrison 7843 | -8/Materials | Garrison activated, responded to threat 8342 | -8/Materials | Build established: Derelict-Mutant 8375 | -8/Materials | Discovered exit to Factory (range 16) 8936 | -8/Materials | Build established: Scavenger-Mutant 9006 | -8/Materials | First assault squad dispatched 9146 | -8/Materials | Entered Factory 9146 | -7/Factory | Evolved 2 slots: Utility x2 9150 | -7/Factory | Attached Flightbrick, gained temporary slots: Utility x3 9229 | -7/Factory | Discovered new exit (range 15) 9459 | -7/Factory | Build established: Hacker-Mutant 9619 | -7/Factory | Identified exit to Factory 9629 | -7/Factory | Discovered new exit (range 16) 9635 | -7/Factory | Identified exit to Lower Caves 9641 | -7/Factory | Found Prototype Launcher 9642 | -7/Factory | Identified Rocket Array 10037 | -7/Factory | Discovered exit to Lower Caves (range 14) 10096 | -7/Factory | System Shield fried by hacking feedback 10418 | -7/Factory | Entered Lower Caves 10787 | -7/Lower Caves | Learned location of Extension (-4) 10807 | -7/Lower Caves | Discovered new exit (range 15) 10812 | -7/Lower Caves | Identified exit to Lower Caves 10816 | -7/Lower Caves | Entered another Lower Caves area 11112 | -7/Lower Caves | Attracted the attention of an 0b10 checkpoint 11246 | -7/Lower Caves | Discovered new exit (range 10) 11271 | -7/Lower Caves | Identified exit to Zion 11282 | -7/Lower Caves | Entered Zion 11297 | -7/Zion | Learned 8 Factory zone layouts 11317 | -7/Zion | Discovered new exit (range 16) 11322 | -7/Zion | Identified exit to Proximity Caves 11388 | -7/Zion | Found Prototype Launcher 11388 | -7/Zion | Identified Gui. Missile Launcher 11407 | -7/Zion | Learned Factory security intel 11515 | -7/Zion | Gained Derelict followers 11523 | -7/Zion | Given the Hacking Drone Bay 11562 | -7/Zion | Found Prototype Device 11562 | -7/Zion | Identified Bomb Factory No. 2 11858 | -7/Zion | Entered Proximity Caves 11858 | -6/Proximity Caves | Accompanied by 4 allies 11865 | -6/Proximity Caves | Spotted B-75 Beast 11907 | -6/Proximity Caves | Destroyed B-75 Beast 11944 | -6/Proximity Caves | Spotter reported a threat 11966 | -6/Proximity Caves | Spotter reported a threat 12019 | -6/Proximity Caves | Spotter reported a threat 12072 | -6/Proximity Caves | Spotter reported a threat 12105 | -6/Proximity Caves | Spotter reported a threat 12158 | -6/Proximity Caves | Learned location of 1 exit from Lower Caves 12187 | -6/Proximity Caves | Discovered exit to Factory (range 13) 12197 | -6/Proximity Caves | Entered Factory 12197 | -6/Factory | Evolved 2 slots: Propulsion x1, Utility x1 12198 | -6/Factory | Identified exit to Lower Caves 12199 | -6/Factory | Identified exit to Factory 12224 | -6/Factory | Repaired Imp. Light Armor Plating 12451 | -6/Factory | Hacking Suite fried by hacking feedback 12547 | -6/Factory | Search patrols dispatched 12801 | -6/Factory | Build established: Scout 12811 | -6/Factory | Discovered exit to Lower Caves (range 10) 12897 | -6/Factory | Search patrols dispatched 12927 | -6/Factory | Spotted B-75 Beast 13263 | -6/Factory | Discovered exit to Factory (range 15) 13410 | -6/Factory | Discovered exit to Factory (range 14) 13442 | -6/Factory | Discovered exit to Factory (range 20) 13521 | -6/Factory | Entered Lower Caves 13522 | -6/Lower Caves | Identified exit to Lower Caves 13708 | -6/Lower Caves | Entered another Lower Caves area 13732 | -6/Lower Caves | Encountered a Warlord checkpoint 13822 | -6/Lower Caves | Discovered new exit (range 13) 13824 | -6/Lower Caves | Learned 4 Factory zone layouts 13829 | -6/Lower Caves | Identified exit to Data Miner 13891 | -6/Lower Caves | Entered Data Miner 13891 | -6/Data Miner | Discovered new exit (range 6) 13893 | -6/Data Miner | Identified exit to Proximity Caves 13896 | -6/Data Miner | Met Data Miner 13904 | -6/Data Miner | Acquired the access code to Warlord's prototype stash 13910 | -6/Data Miner | Received God Mode back door access code from Data Miner 13924 | -6/Data Miner | Interfaced with the Data Conduit 13934 | -6/Data Miner | Entered Proximity Caves 13969 | -5/Proximity Caves | Learned location of 1 exit from Upper Caves 13973 | -5/Proximity Caves | Spotted B-75 Beast 14115 | -5/Proximity Caves | Spotter reported a threat 14162 | -5/Proximity Caves | Spotter reported a threat 14167 | -5/Proximity Caves | Spotter reported a threat 14223 | -5/Proximity Caves | Discovered exit to Factory (range 4) 14224 | -5/Proximity Caves | Entered Factory 14224 | -5/Factory | Evolved 2 slots: Utility x2 14225 | -5/Factory | Identified exit to Upper Caves 14227 | -5/Factory | Loaded intel: 280 machine locations 14256 | -5/Factory | Spotted B-75 Beast 14259 | -5/Factory | Identified exit to DSF 14368 | -5/Factory | Lost 3 parts (1n2w) 14440 | -5/Factory | Entered Upper Caves 14441 | -5/Upper Caves | Identified exit to Upper Caves 14520 | -5/Upper Caves | Encountered a Warlord checkpoint 14522 | -5/Upper Caves | Entered another Upper Caves area 14526 | -5/Upper Caves | Discovered new exit (range 13) 14530 | -5/Upper Caves | Identified exit to Factory 14601 | -5/Upper Caves | Learned Factory emergency access door positions 14601 | -5/Upper Caves | Learned Extension terminal intel 14731 | -5/Upper Caves | Attracted the attention of an 0b10 checkpoint 14828 | -5/Upper Caves | Discovered new exit (range 5) 14829 | -5/Upper Caves | Identified exit to Zhirov 14829 | -5/Upper Caves | Entered Zhirov 14829 | -5/Zhirov | Discovered new exit (range 3) 14835 | -5/Zhirov | Met Zhirov 14846 | -5/Zhirov | Zhirov requested help retrieving the SGEMP Prototype 14852 | -5/Zhirov | Found Alien Artifact 14852 | -5/Zhirov | Identified Integrated Dissipator 14852 | -5/Zhirov | Installed Integrated Dissipator, increased core heat dissipation (+20) 14862 | -5/Zhirov | Found Alien Artifact 14881 | -5/Zhirov | Identified exit to Proximity Caves 14881 | -5/Zhirov | Entered Proximity Caves 14888 | -4/Proximity Caves | Build established: Hacker-Scout 15135 | -4/Proximity Caves | Learned 4 Research zone layouts 15433 | -4/Proximity Caves | Discovered exit to Factory (range 3) 15434 | -4/Proximity Caves | Entered Factory 15434 | -4/Factory | Evolved 2 slots: Propulsion x1, Utility x1 15436 | -4/Factory | Loaded intel: 291 machine locations 15438 | -4/Factory | Spotted B-86 Titan 15566 | -4/Factory | Discovered new exit (range 6) 15567 | -4/Factory | Identified exit to Extension 15567 | -4/Factory | Entered Extension 15568 | -4/Extension | Loaded intel: 32 machine locations 15569 | -4/Extension | Loaded intel: 11 terminal locations 15583 | -4/Extension | Rescued A7 15663 | -4/Extension | Spotted B-86 Titan 15708 | -4/Extension | Spotted B-86 Titan 15736 | -4/Extension | Core integrity fell below 50% 15764 | -4/Extension | System corruption reached 10% 15766 | -4/Extension | Lost 14 parts (2p5n7u) 15812 | -4/Extension | Discovered new exit (range 21) 15812 | -4/Extension | Discovered new exit (range 21) 15822 | -4/Extension | Identified exit to Research 15825 | -4/Extension | Entered Research 15825 | -3/Research | Evolved 2 slots: Utility x2 15826 | -3/Research | Identified exit to Armory 15826 | -3/Research | Identified exit to Testing 15828 | -3/Research | Loaded intel: 102 machine locations 15921 | -3/Research | Discovered exit to Testing (range 5) 16017 | -3/Research | Allied Derelicts emerged from ambush trap array 16129 | -3/Research | Build established: Mutant 16185 | -3/Research | Found Mni. Smartbomb Launcher 16187 | -3/Research | Found Mni. Smartbomb Launcher 16271 | -3/Research | Found Hellfire Missile Launcher 16315 | -3/Research | Intercept squad dispatched 16322 | -3/Research | Spotted Tracker 16324 | -3/Research | Identified Transdimensional Reconstructor 16324 | -3/Research | Warped through subspace 16328 | -3/Research | Spotted Tracker 16329 | -3/Research | Destroyed Tracker 16332 | -3/Research | Destroyed Tracker 16350 | -3/Research | Core integrity fell below 50% 16351 | -3/Research | Spotted Combat Programmer 16353 | -3/Research | Released all parts (12) 16360 | -3/Research | System corruption reached 10% 16360 | -3/Research | Self-destructed Last Messages --------------- 16350_ U-05 Engineer builds a Wall. 16350_ K-01 Serf collects debris. 16350_ U-05 Engineer builds a Wall. 16352_ C-35 Carver destroyed. 16353_ Released Antimissile System. 16353_ Released Imp. System Shield. 16353_ Released Med. Storage Unit. 16353_ Released Gyrokinetic Inverter. 16353_ Released Mak. System Shield. 16353_ Released Enh. Optical Array. 16353_ Released Machine Analyzer. 16353_ Released Adv. Signal Interpreter. 16353_ Released Gyrokinetic Inverter. 16353_ Released Particle Reactor. 16354_ T-07 Excavator destroyed. 16354_ U-05 Engineer lays Concrete. 16354_ K-01 Serf collects debris. 16354_ EMDS Slug penetrates Wall. 16355_ U-05 Engineer builds a Wall. 16359_ Penetrated by EMDS Slug. Map ----- +----------------------------------------------------+ | ????????????????????????????"""???????????T"?????? | | ????????????????????????????"""??????????"""?????? | | ??"""???????????????????????"""??????????""??????? | | ?""""????????????????????????????????????????????? | | ?""""????????????????????????????????????????????? | | ?"""?????????????????????????????????????????????? | | ?????????????????????????????????????????????????? | | ?????????????????????????????????????????????????? | | ?????????????????????????????????????????????????? | | ????????????????????????????????????????###??????? | | ????????????????????????????????#########"#????### | | ????????????????????????????????# |= #????# | | ????????????????""??????????????# =%! #????# | | ???????????????""S??????????????# ! #????# | | ???????????????""?????????####### #????# | | ??????????????????????????# # #????### | | ??????????????????????????# #] #????### | | ??????????????????????????# #=]== #????# | | ????????????????#+#???????# !+%% = * #????# | | ????????????????# ######### ###+#######????# | | ??##????????????# ## # # #???##] | | ?? ????????????# ## #] #???#" | | ?? ????????????# ## #]] # """" #???##][ | | ?? ???????????## ## p #% ] # """" #????### | | ?? ???????????# p c #]]* # """" #??????? | | ?? ???????????# # c@m + ="""" #??????? | | ?? ???????????# # ! # # #??????? | | ?? ??????????# # # # = #??????? | | ?? ????????### ######;# ################## | | ###+########## #??##u #????# | | ===!%* "#### #????# | | =!!/ " u ###### ^ | | */ " %%/ H | | ############# " | | ##### #???????????# " | | ###/# ######## #???# #???????????# " | | ##?#########???### ###???????????# | | #???????????????# #?????????????# | | #???????????????# #?????????????# | | % #???????????????# #?????????????# " | | #???????????????# #?????????????# " | | % # #???????????????# #?????????????# " | | ##???????????????# #?????????????+ | | ##????????????????/ #?????????????# | | #?????????????????# #????????##???# | | ????????????????# #???????? ## " | | # ??????????????? ???????? " | | # ##?????????????? "" ???????"" " | | # " " #??????????????? T ???????T" | | ?# ""R"" #??????????????? ?????? | +----------------------------------------------------+ Best States ------------- Heat Dissipation 92 Energy Generation 23 Energy Capacity 340 Matter Stores 300 Matter Capacity 300 Sight Range 22 Robot Scan Range 18 Terrain Scan Range 16 Terrain Scan Density 210 ECM Strength 2 Armor Coverage 800 Utility Shielding 66 Point Defense Rating 240 Evasion (%) 70 Recoil Reduction 4 Offensive Hacking 30 Defensive Hacking 23 Trap Extractor Capacity 6 Item Schematics ----------------- System Shield | -8/Materials | Scanalyzed Imp. VTOL Module | -7/Factory | Scanalyzed Rocket Array | -7/Factory | Scanalyzed Imp. Trap Extractor | -7/Factory | Scanalyzed Arc Thrower | -7/Zion | Free Battle Rifle | -7/Zion | Free Barrage Gun | -7/Zion | Free Flamer | -7/Zion | Free Enh. Flamer | -7/Zion | Free Ripper | -7/Zion | Free Adv. ECM Suite | -7/Zion | Archive Phase Cannon | -7/Zion | Archive Mak. Laser | -7/Zion | Archive Imp. Core Shielding | -7/Zion | Archive Mak. Flight Unit | -7/Zion | Archive Microactuators | -7/Zion | Archive Drone Bay | -7/Zion | Archive Arm. Medium Treads | -7/Zion | Archive Lgt. Angular Momentum Engine | -7/Zion | Archive Mni. Drone Bay | -7/Zion | Archive Imp. Cooling System | -7/Zion | Archive Thermic Laser | -7/Zion | Archive Med. Insulated Plating | -7/Zion | Archive Great Axe | -7/Zion | Archive Tiamat Missile Launcher | -7/Zion | Archive Stasis Canceller | -6/Factory | Scanalyzed Fission Core | -6/Factory | Scanalyzed Combat Drone Bay | -6/Data Miner | Free Lgt. Regenerative Plating | -6/Data Miner | Free Cld. Nuclear Pulse Thruster | -6/Data Miner | Free Imp. Energy Well | -6/Data Miner | Free Neutron Cannon | -6/Data Miner | Free Imp. Antigrav System | -6/Data Miner | Free Adv. Reaction Control System | -6/Data Miner | Free Hvy. Gauss Cannon | -6/Data Miner | Free Imp. Component Analysis Suite | -6/Data Miner | Free Hardcell Cannon | -6/Data Miner | Free HERF Cannon | -6/Data Miner | Free Adv. Force Field | -6/Data Miner | Free Assault Drone Bay | -5/Zhirov | Free Exp. Heat Sink | -5/Zhirov | Free Exp. Optical Array | -5/Zhirov | Free Imp. Arc Thrower | -5/Zhirov | Free Robot Schematics ------------------ S-27 Virus | -7/Zion | Archive A-02 Transporter | -7/Zion | Archive Y-45 Defender | -7/Zion | Archive M-22 Extractor | -6/Data Miner | Free R-10 Processor | -6/Data Miner | Free B-60 Warrior | -6/Data Miner | Free H-66 Slayer | -6/Data Miner | Free Y-64 Sentinel | -6/Data Miner | Free Fabricated ------------ Nothing Alien Tech Used ----------------- Integrated Dissipator Transdimensional Reconstructor Achievements -------------- Error 47 Short-term Sacrifices Challenges ------------ None Game ------ Seed CloakSiegeShield Manual? 0 Play Time 03:52:50 Cumulative 146.1 hours Start 2024.06.07 @ 20:33:13 End 2024.06.08 @ 01:59:08 Sessions 1 Manual Loads 0 Difficulty Rogue Special Mode None Game No. 119 Rogue 114 Adventurer 5 Explorer 0 Win Type - Total 3 Types 2/0/1/0/0/0/0/0/0 Lore% 63 Gallery% 73 Achievement% 53 Wizard Run 0 Options --------- Layout 2 ASCII 0 Keyboard 0 Movement Mouse Keybinds 0 Fullscreen 2 Font 24/Smallcaps Map View 50x44 Zoom Use 0% Tactical HUD 1 Map Filters NONE Filters NONE Steam 1 RUN: b2925a8d-3aff-4dd1-ac2d-cb3c4947a99c